[Event "6e festival d'échecs d'Allauch"]
[Site "Allauch, France"]
[Date "2024.08.31"]
[Round "9.3"]
[White "Figier, Anthony"]
[Black "Philippe, Guillaume"]
[Result "1/2-1/2"]
[TimeControl "1 h 30 min (+30s/coup)"]
[WhiteElo "2000"]
[BlackElo "2356"]

1. d4 {[%clk 01:30:56]} {[%emt 00:00:03]} Nf6 {[%clk 01:30:53]} {[%emt
00:00:08]} 2. Nf3 {[%clk 01:31:18]} {[%emt 00:00:07]} e6 {[%clk 01:31:15]}
{[%emt 00:00:09]} 3. g3 {[%clk 01:31:42]} {[%emt 00:00:05]} b5 {[%clk
01:31:21]} {[%emt 00:00:23]} 4. Bg2 {[%clk 01:32:01]} {[%emt 00:00:12]} Bb7
{[%clk 01:31:45]} {[%emt 00:00:07]} 5. O-O {[%clk 01:32:24]} {[%emt 00:00:07]}
c5 {[%clk 01:32:08]} {[%emt 00:00:07]} 6. a4 {[%clk 01:28:57]} {[%emt
00:03:58]} b4 {[%clk 01:31:57]} {[%emt 00:00:40]} 7. c4 {[%clk 01:26:43]}
{[%emt 00:02:44]} cxd4 {[%clk 01:32:04]} {[%emt 00:00:23]} 8. Qxd4 {[%clk
01:24:56]} {[%emt 00:02:17]} Be7 {[%clk 01:30:59]} {[%emt 00:01:36]} 9. Bf4
{[%clk 01:23:19]} {[%emt 00:02:07]} O-O {[%clk 01:28:16]} {[%emt 00:03:11]} 10.
Nbd2 {[%clk 01:17:13]} {[%emt 00:06:37]} Nc6 {[%clk 01:26:46]} {[%emt
00:02:00]} 11. Qd3 {[%clk 01:17:37]} {[%emt 00:00:07]} d5 {[%clk 01:26:47]}
{[%emt 00:00:28]} 12. Rfd1 {[%clk 01:13:27]} {[%emt 00:04:40]} Rc8 {[%clk
01:22:43]} {[%emt 00:04:33]} 13. Rac1 {[%clk 01:04:03]} {[%emt 00:09:56]} Na5
{[%clk 01:17:15]} {[%emt 00:05:57]} 14. Qb1 {[%clk 01:03:06]} {[%emt 00:01:27]}
Qe8 {[%clk 01:16:17]} {[%emt 00:01:27]} 15. cxd5 {[%clk 00:52:26]} {[%emt
00:11:10]} Rxc1 {[%clk 01:13:48]} {[%emt 00:02:59]} 16. Rxc1 {[%clk 00:52:31]}
{[%emt 00:00:25]} Nxd5 {[%clk 01:14:02]} {[%emt 00:00:15]} 17. Ng5 {[%clk
00:45:58]} {[%emt 00:07:04]} g6 {[%clk 01:12:44]} {[%emt 00:01:47]} 18. Bxd5
{[%clk 00:42:12]} {[%emt 00:04:16]} Bxd5 {[%clk 01:11:55]} {[%emt 00:01:19]} 19.
Nge4 {[%clk 00:41:04]} {[%emt 00:01:39]} f5 {[%clk 00:46:26]} {[%emt 00:25:59]}
20. Nd6 {[%clk 00:37:09]} {[%emt 00:04:24]} Qxa4 {[%clk 00:45:54]} {[%emt
00:01:03]} 21. Rc7 {[%clk 00:35:15]} {[%emt 00:02:24]} Nc6 {[%clk 00:44:28]}
{[%emt 00:01:55]} 22. b3 {[%clk 00:31:25]} {[%emt 00:04:20]} Qa5 {[%clk
00:43:24]} {[%emt 00:01:30]} 23. N6c4 {[%clk 00:30:20]} {[%emt 00:01:39]} Qb5
{[%clk 00:40:42]} {[%emt 00:03:09]} 24. Bh6 {[%clk 00:26:53]} {[%emt 00:04:01]}
Qb8 {[%clk 00:39:48]} {[%emt 00:01:24]} 25. Rxe7 {[%clk 00:23:20]} {[%emt
00:04:02]} Nxe7 {[%clk 00:40:13]} {[%emt 00:00:05]} 26. Qa1 {[%clk 00:23:06]}
{[%emt 00:00:44]} Rf7 {[%clk 00:32:23]} {[%emt 00:08:20]} 27. Ne5 {[%clk
00:23:00]} {[%emt 00:00:36]} Qe8 {[%clk 00:32:51]} {[%emt 00:00:03]} 28. Nxf7
{[%clk 00:22:13]} {[%emt 00:01:18]} Qxf7 {[%clk 00:33:16]} {[%emt 00:00:05]} 29.
Qxa7 {[%clk 00:22:33]} {[%emt 00:00:10]} Nc8 {[%clk 00:30:40]} {[%emt
00:03:05]} 30. Qc5 {[%clk 00:22:26]} {[%emt 00:00:37]} Bb7 {[%clk 00:30:52]}
{[%emt 00:00:18]} 31. Qxb4 {[%clk 00:22:39]} {[%emt 00:00:18]} Qe7 {[%clk
00:31:18]} {[%emt 00:00:04]} 32. Qxe7 {[%clk 00:19:04]} {[%emt 00:04:05]} Nxe7
{[%clk 00:31:20]} {[%emt 00:00:27]} 33. Nc4 {[%clk 00:18:28]} {[%emt 00:01:07]}
Bd5 {[%clk 00:30:54]} {[%emt 00:00:54]} 34. Bd2 {[%clk 00:16:13]} {[%emt
00:02:47]} Nc6 {[%clk 00:30:13]} {[%emt 00:01:11]} 35. Bc3 {[%clk 00:16:38]}
{[%emt 00:00:06]} e5 {[%clk 00:30:12]} {[%emt 00:00:30]} 36. Nxe5 {[%clk
00:15:30]} {[%emt 00:01:38]} 1/2-1/2

[Event "6e festival d'échecs d'Allauch"]
[Site "Allauch, France"]
[Date "2024.08.31"]
[Round "9.4"]
[White "Charlier, Antoine"]
[Black "Fournier, Loic"]
[Result "0-1"]
[TimeControl "1 h 30 min (+30s/coup)"]
[WhiteElo "2070"]
[BlackElo "2098"]

1. d4 {[%clk 01:30:56]} {[%emt 00:00:03]} Nf6 {[%clk 01:29:24]} {[%emt
00:01:37]} 2. c4 {[%clk 01:31:04]} {[%emt 00:00:22]} c5 {[%clk 01:29:48]}
{[%emt 00:00:06]} 3. d5 {[%clk 01:31:14]} {[%emt 00:00:21]} e6 {[%clk
01:30:13]} {[%emt 00:00:06]} 4. Nc3 {[%clk 01:31:28]} {[%emt 00:00:14]} exd5
{[%clk 01:30:39]} {[%emt 00:00:04]} 5. cxd5 {[%clk 01:31:16]} {[%emt 00:00:43]}
d6 {[%clk 01:31:04]} {[%emt 00:00:05]} 6. Nf3 {[%clk 01:31:14]} {[%emt
00:00:32]} g6 {[%clk 01:31:29]} {[%emt 00:00:04]} 7. Nd2 {[%clk 01:31:20]}
{[%emt 00:00:24]} Bg7 {[%clk 01:31:55]} {[%emt 00:00:07]} 8. Nc4 {[%clk
01:31:32]} {[%emt 00:00:16]} O-O {[%clk 01:32:22]} {[%emt 00:00:03]} 9. Bf4
{[%clk 01:31:31]} {[%emt 00:00:30]} Nh5 {[%clk 01:32:43]} {[%emt 00:00:09]} 10.
Bxd6 {[%clk 01:12:08]} {[%emt 00:19:53]} Re8 {[%clk 01:29:33]} {[%emt
00:03:41]} 11. Nb5 {[%clk 01:12:14]} {[%emt 00:00:25]} Bd7 {[%clk 01:19:07]}
{[%emt 00:10:55]} 12. Nc7 {[%clk 01:10:50]} {[%emt 00:01:53]} b5 {[%clk
01:18:12]} {[%emt 00:01:26]} 13. Nd2 {[%clk 01:02:52]} {[%emt 00:08:28]} Na6
{[%clk 01:16:33]} {[%emt 00:02:09]} 14. Nxa6 {[%clk 00:59:19]} {[%emt
00:04:03]} Qb6 {[%clk 01:14:17]} {[%emt 00:02:46]} 15. Bxc5 {[%clk 00:27:17]}
{[%emt 00:32:31]} Qxa6 {[%clk 01:13:42]} {[%emt 00:01:06]} 16. e4 {[%clk
00:24:34]} {[%emt 00:03:13]} Bxb2 {[%clk 01:10:39]} {[%emt 00:03:33]} 17. Rb1
{[%clk 00:22:58]} {[%emt 00:02:07]} Bc3 {[%clk 01:11:01]} {[%emt 00:00:08]} 18.
Qc2 {[%clk 00:20:19]} {[%emt 00:03:09]} Rxe4+ {[%clk 00:46:49]} {[%emt
00:24:42]} 19. Be3 {[%clk 00:19:57]} {[%emt 00:00:51]} Rc8 {[%clk 00:36:48]}
{[%emt 00:10:32]} 20. Rb3 {[%clk 00:14:44]} {[%emt 00:05:43]} Bf5 {[%clk
00:14:29]} {[%emt 00:22:49]} 21. Bd3 {[%clk 00:14:22]} {[%emt 00:00:52]} Rec4
{[%clk 00:11:55]} {[%emt 00:03:05]} 22. Bxf5 {[%clk 00:12:21]} {[%emt
00:02:31]} gxf5 {[%clk 00:09:31]} {[%emt 00:02:53]} 23. O-O {[%clk 00:12:14]}
{[%emt 00:00:36]} Bxd2 {[%clk 00:08:19]} {[%emt 00:01:43]} 24. Qxd2 {[%clk
00:12:00]} {[%emt 00:00:44]} f4 {[%clk 00:08:28]} {[%emt 00:00:20]} 25. Bd4
{[%clk 00:11:48]} {[%emt 00:00:42]} Rc2 {[%clk 00:07:38]} {[%emt 00:01:21]} 26.
Qd3 {[%clk 00:11:34]} {[%emt 00:00:43]} Qxa2 {[%clk 00:07:12]} {[%emt
00:00:56]} 27. g3 {[%clk 00:05:16]} {[%emt 00:06:49]} Rc1 {[%clk 00:06:54]}
{[%emt 00:00:48]} 28. Rxc1 {[%clk 00:04:30]} {[%emt 00:01:16]} Rxc1+ {[%clk
00:07:23]} {[%emt 00:00:01]} 29. Kg2 {[%clk 00:04:45]} {[%emt 00:00:15]} fxg3
{[%emt 00:03:18]} 30. hxg3 {[%clk 00:03:56]} {[%emt 00:01:17]} Qc2 {[%clk
00:02:48]} {[%emt 00:02:19]} 31. Rxb5 {[%clk 00:03:32]} {[%emt 00:00:54]} Qc8
{[%clk 00:01:01]} {[%emt 00:02:17]} 32. Qe3 {[%clk 00:03:34]} {[%emt 00:00:28]}
f6 {[%clk 00:00:43]} {[%emt 00:00:49]} 33. Qe2 {[%clk 00:00:44]} {[%emt
00:03:19]} Ng7 {[%clk 00:00:39]} {[%emt 00:00:34]} 34. Bxf6 {[%clk 00:00:37]}
{[%emt 00:00:37]} Rc2 {[%clk 00:00:33]} {[%emt 00:00:36]} 35. Qe3 {[%clk
00:00:42]} {[%emt 00:00:25]} Qe8 {[%clk 00:00:40]} {[%emt 00:00:24]} 36. Qf4
{[%clk 00:00:36]} {[%emt 00:00:35]} Qxb5 {[%clk 00:00:51]} {[%emt 00:00:20]} 37.
Qg5 {[%clk 00:00:32]} {[%emt 00:00:34]} Rc7 {[%clk 00:00:41]} {[%emt 00:00:40]}
38. Qe5 {[%clk 00:00:41]} {[%emt 00:00:21]} Rd7 {[%clk 00:00:50]} {[%emt
00:00:20]} 39. Kh2 {[%clk 00:00:35]} {[%emt 00:00:36]} Rxd5 {[%clk 00:01:02]}
{[%emt 00:00:19]} 40. Qc7 {[%clk 00:00:33]} {[%emt 00:00:31]} Rh5+ {[%clk
00:00:59]} {[%emt 00:00:33]} 41. Bh4 {[%clk 00:01:01]} {[%emt 00:00:01]} Qe5
{[%clk 00:00:48]} {[%emt 00:00:41]} 42. Qc8+ {[%clk 00:00:51]} {[%emt
00:00:41]} Qe8 {[%clk 00:00:58]} {[%emt 00:00:20]} 43. Qc4+ {[%clk 00:01:02]}
{[%emt 00:00:19]} Qe6 {[%clk 00:01:21]} {[%emt 00:00:07]} 44. Qd4 {[%clk
00:01:07]} {[%emt 00:00:25]} h6 {[%clk 00:01:20]} {[%emt 00:00:31]} 45. Qxa7
{[%clk 00:00:43]} {[%emt 00:00:54]} Nf5 {[%clk 00:00:56]} {[%emt 00:00:56]} 46.
Qb8+ {[%clk 00:01:04]} {[%emt 00:00:07]} Kf7 {[%clk 00:00:58]} {[%emt
00:00:27]} 47. Qc7+ {[%clk 00:01:22]} {[%emt 00:00:12]} Kg6 {[%clk 00:00:49]}
{[%emt 00:00:39]} 48. Qc2 {[%clk 00:01:47]} {[%emt 00:00:06]} Kg7 {[%clk
00:01:01]} {[%emt 00:00:18]} 49. Qc7+ {[%clk 00:02:04]} {[%emt 00:00:13]} Qe7
{[%clk 00:00:57]} {[%emt 00:00:33]} 50. Qc3+ {[%clk 00:02:14]} {[%emt
00:00:21]} Kh7 {[%clk 00:00:46]} {[%emt 00:00:41]} 51. Qd3 {[%clk 00:01:42]}
{[%emt 00:01:02]} Qc7 {[%clk 00:00:39]} {[%emt 00:00:37]} 52. Kg1 {[%clk
00:01:32]} {[%emt 00:00:39]} Kg7 {[%clk 00:00:50]} {[%emt 00:00:19]} 53. Qf3
{[%clk 00:01:37]} {[%emt 00:00:25]} Qc1+ {[%clk 00:00:39]} {[%emt 00:00:42]} 54.
Kh2 {[%clk 00:01:47]} {[%emt 00:00:20]} Rxh4+ {[%clk 00:00:39]} {[%emt
00:00:29]} 55. gxh4 {[%clk 00:02:08]} {[%emt 00:00:09]} Nxh4 {[%clk 00:00:37]}
{[%emt 00:00:33]} 56. Qb7+ {[%clk 00:02:07]} {[%emt 00:00:30]} Kf6 {[%clk
00:00:56]} {[%emt 00:00:11]} 57. Qb6+ {[%clk 00:02:02]} {[%emt 00:00:35]} Kf5
{[%clk 00:00:58]} {[%emt 00:00:27]} 58. Qb5+ {[%clk 00:02:04]} {[%emt
00:00:29]} Kg4 {[%clk 00:01:16]} {[%emt 00:00:12]} 59. Qd7+ {[%clk 00:02:07]}
{[%emt 00:00:27]} Nf5 {[%clk 00:01:34]} {[%emt 00:00:12]} 60. Qe6 {[%clk
00:01:09]} {[%emt 00:01:27]} Qf4+ {[%clk 00:01:47]} {[%emt 00:00:17]} 61. Kg1
{[%clk 00:01:28]} {[%emt 00:00:11]} Kh3 {[%clk 00:01:34]} {[%emt 00:00:43]} 62.
Kf1 {[%clk 00:00:53]} {[%emt 00:01:05]} Qc1+ {[%clk 00:01:52]} {[%emt
00:00:13]} 63. Ke2 {[%clk 00:01:19]} {[%emt 00:00:04]} Qc2+ {[%clk 00:01:52]}
{[%emt 00:00:30]} 64. Ke1 {[%clk 00:00:46]} {[%emt 00:01:03]} Kg4 {[%clk
00:01:56]} {[%emt 00:00:26]} 65. Qg6+ {[%clk 00:00:34]} {[%emt 00:00:41]} Kf4
{[%clk 00:02:14]} {[%emt 00:00:12]} 66. Qf6 {[%clk 00:00:33]} {[%emt 00:00:31]}
Kf3 {[%clk 00:01:45]} {[%emt 00:01:00]} 0-1

[Event "6e festival d'échecs d'Allauch"]
[Site "Allauch, France"]
[Date "2024.08.31"]
[Round "9.5"]
[White "Sembel Rudelle, Gael"]
[Black "Ghio, Maxime"]
[Result "0-1"]
[TimeControl "1 h 30 min (+30s/coup)"]
[WhiteElo "1624"]
[BlackElo "1641"]

1. e4 {[%clk 01:30:57]} {[%emt 00:00:05]} c5 {[%clk 01:30:57]} {[%emt
00:00:02]} 2. c3 {[%clk 01:31:11]} {[%emt 00:00:15]} d5 {[%clk 01:31:22]}
{[%emt 00:00:05]} 3. exd5 {[%clk 01:31:38]} {[%emt 00:00:05]} Qxd5 {[%clk
01:31:46]} {[%emt 00:00:04]} 4. d4 {[%clk 01:32:04]} {[%emt 00:00:03]} Nf6
{[%clk 01:32:04]} {[%emt 00:00:11]} 5. Nf3 {[%clk 01:32:31]} {[%emt 00:00:04]}
e6 {[%clk 01:32:29]} {[%emt 00:00:06]} 6. Be3 {[%clk 01:32:57]} {[%emt
00:00:04]} cxd4 {[%clk 01:31:27]} {[%emt 00:01:32]} 7. cxd4 {[%clk 01:33:23]}
{[%emt 00:00:04]} Be7 {[%clk 01:29:55]} {[%emt 00:02:01]} 8. Nc3 {[%emt
00:01:03]} Qd8 {[%clk 01:29:28]} 9. Bc4 {[%clk 01:30:16]} {[%emt 00:04:02]} Nc6
{[%clk 01:26:56]} {[%emt 00:03:02]} 10. O-O {[%clk 01:30:27]} {[%emt 00:00:19]}
O-O {[%clk 01:27:05]} {[%emt 00:00:21]} 11. Qe2 {[%clk 01:29:17]} {[%emt
00:01:39]} Ng4 {[%clk 01:21:36]} {[%emt 00:05:59]} 12. h3 {[%clk 01:29:18]}
{[%emt 00:00:30]} Nxe3 {[%clk 01:19:24]} {[%emt 00:02:42]} 13. fxe3 {[%clk
01:25:50]} {[%emt 00:03:57]} b6 {[%clk 01:11:49]} {[%emt 00:08:05]} 14. Bd3
{[%clk 01:13:37]} {[%emt 00:12:43]} Nb4 {[%clk 00:55:52]} {[%emt 00:16:27]} 15.
Be4 {[%clk 01:12:24]} {[%emt 00:01:44]} Ba6 {[%clk 00:56:06]} {[%emt 00:00:16]}
16. Nb5 {[%clk 01:11:48]} {[%emt 00:01:06]} Rc8 {[%clk 00:48:25]} {[%emt
00:08:10]} 17. Ne5 {[%clk 01:08:16]} {[%emt 00:04:03]} f5 {[%clk 00:36:27]}
{[%emt 00:12:28]} 18. a3 {[%clk 01:05:23]} {[%emt 00:03:24]} Qe8 {[%clk
00:34:22]} {[%emt 00:02:35]} 19. axb4 {[%clk 01:04:36]} {[%emt 00:01:17]} Bxb5
{[%clk 00:33:28]} {[%emt 00:01:23]} 20. Bd3 {[%clk 01:04:58]} {[%emt 00:00:08]}
Ba4 {[%clk 00:29:28]} {[%emt 00:04:30]} 21. Bc4 {[%clk 01:03:15]} {[%emt
00:02:14]} Bxb4 {[%clk 00:21:08]} {[%emt 00:08:50]} 22. b3 {[%clk 01:02:28]}
{[%emt 00:01:16]} Bc6 {[%clk 00:16:58]} {[%emt 00:04:40]} 23. Rxa7 {[%clk
01:02:23]} {[%emt 00:00:36]} Bd6 {[%clk 00:15:39]} {[%emt 00:01:48]} 24. Nxc6
{[%clk 01:02:36]} {[%emt 00:00:18]} Rxc6 {[%clk 00:15:33]} {[%emt 00:00:36]} 25.
Bb5 {[%clk 01:03:02]} {[%emt 00:00:04]} Qb8 {[%clk 00:14:26]} {[%emt 00:01:36]}
26. Rxg7+ {[%clk 01:02:57]} {[%emt 00:00:35]} Kxg7 {[%clk 00:13:42]} {[%emt
00:01:13]} 27. Bxc6 {[%clk 01:03:24]} {[%emt 00:00:04]} Qc7 {[%clk 00:10:36]}
{[%emt 00:03:36]} 28. Qf3 {[%clk 01:03:13]} {[%emt 00:00:40]} f4 {[%clk
00:09:05]} {[%emt 00:02:01]} 29. d5 {[%clk 00:58:55]} {[%emt 00:04:48]} fxe3
{[%clk 00:07:31]} {[%emt 00:02:03]} 30. Qg4+ {[%clk 00:58:55]} {[%emt
00:00:31]} Kh8 {[%clk 00:07:45]} {[%emt 00:00:15]} 31. Rxf8+ {[%clk 00:59:19]}
{[%emt 00:00:07]} Bxf8 {[%clk 00:08:00]} {[%emt 00:00:15]} 32. Qxe6 {[%clk
00:59:11]} {[%emt 00:00:38]} Qf4 {[%clk 00:06:58]} {[%emt 00:01:33]} 33. Be8
{[%clk 00:57:21]} {[%emt 00:02:19]} Qf2+ {[%clk 00:06:12]} {[%emt 00:01:15]} 34.
Kh2 {[%clk 00:57:43]} {[%emt 00:00:07]} e2 {[%clk 00:04:58]} {[%emt 00:01:45]}
35. Qe5+ {[%clk 00:57:29]} {[%emt 00:00:44]} Bg7 {[%clk 00:03:44]} {[%emt
00:01:44]} 36. Qb8 {[%clk 00:57:17]} {[%emt 00:00:42]} Qg1+ {[%clk 00:02:48]}
{[%emt 00:01:25]} 37. Kxg1 {[%clk 00:56:44]} {[%emt 00:01:04]} e1=Q+ {[%clk
00:03:10]} {[%emt 00:00:08]} 38. Kh2 {[%clk 00:57:10]} {[%emt 00:00:04]} Be5+
{[%clk 00:03:28]} {[%emt 00:00:13]} 0-1

[Event "6e festival d'échecs d'Allauch"]
[Site "Allauch, France"]
[Date "2024.08.31"]
[Round "9.6"]
[White "Dorvaux-Valdieu, Teiva"]
[Black "Anton, Christophe"]
[Result "0-1"]
[TimeControl "1 h 30 min (+30s/coup)"]
[WhiteElo "1679"]
[BlackElo "1697"]

1. d4 {[%clk 01:30:58]} {[%emt 00:00:03]} Nf6 {[%clk 01:30:54]} {[%emt
00:00:07]} 2. Nf3 {[%clk 01:31:23]} {[%emt 00:00:03]} g6 {[%clk 01:31:18]}
{[%emt 00:00:05]} 3. e3 {[%clk 01:31:46]} {[%emt 00:00:08]} Bg7 {[%clk
01:31:24]} {[%emt 00:00:24]} 4. Bd3 {[%clk 01:32:09]} {[%emt 00:00:09]} O-O
{[%clk 01:31:22]} {[%emt 00:00:29]} 5. O-O {[%clk 01:32:34]} {[%emt 00:00:06]}
d5 {[%clk 01:31:47]} {[%emt 00:00:05]} 6. Nbd2 {[%clk 01:32:55]} {[%emt
00:00:09]} Nbd7 {[%clk 01:30:16]} {[%emt 00:02:00]} 7. b3 {[%clk 01:33:09]}
{[%emt 00:00:16]} c5 {[%clk 01:30:27]} {[%emt 00:00:18]} 8. Bb2 {[%clk
01:33:30]} {[%emt 00:00:09]} a6 {[%clk 01:26:54]} {[%emt 00:04:04]} 9. Qe2
{[%clk 01:30:07]} {[%emt 00:03:53]} b5 {[%clk 01:26:36]} {[%emt 00:00:48]} 10.
c4 {[%clk 01:30:03]} {[%emt 00:00:33]} b4 {[%clk 01:19:49]} {[%emt 00:07:17]}
11. Rac1 {[%clk 01:21:15]} {[%emt 00:09:19]} a5 {[%clk 01:16:25]} {[%emt
00:03:54]} 12. cxd5 {[%clk 01:14:44]} {[%emt 00:07:01]} Nxd5 {[%clk 01:15:30]}
{[%emt 00:01:24]} 13. Ne4 {[%clk 01:09:53]} {[%emt 00:05:22]} cxd4 {[%clk
01:00:26]} {[%emt 00:15:34]} 14. exd4 {[%clk 00:54:24]} {[%emt 00:15:58]} Nf4
{[%clk 00:59:50]} {[%emt 00:01:06]} 15. Qe3 {[%clk 00:52:21]} {[%emt 00:02:33]}
Nxd3 {[%clk 01:00:05]} {[%emt 00:00:14]} 16. Qxd3 {[%clk 00:52:46]} {[%emt
00:00:05]} Ba6 {[%clk 01:00:27]} {[%emt 00:00:08]} 17. Qd2 {[%clk 00:51:24]}
{[%emt 00:01:54]} Bxf1 {[%clk 01:00:43]} {[%emt 00:00:13]} 18. Kxf1 {[%clk
00:51:48]} {[%emt 00:00:06]} Rc8 {[%clk 00:59:12]} {[%emt 00:02:00]} 19. Rxc8
{[%clk 00:47:11]} {[%emt 00:05:08]} Qxc8 {[%clk 00:59:12]} {[%emt 00:00:30]} 20.
Qd3 {[%clk 00:45:58]} {[%emt 00:01:43]} Qc7 {[%clk 00:56:49]} {[%emt 00:02:52]}
21. g3 {[%clk 00:43:29]} {[%emt 00:03:00]} Rc8 {[%clk 00:56:32]} {[%emt
00:00:47]} 22. Ke1 {[%clk 00:41:23]} {[%emt 00:02:36]} Qc2 {[%clk 00:56:13]}
{[%emt 00:00:49]} 0-1